[Event "Late Titled Tuesday Blitz February 8 2022"]
[White "Buscar, Michael"]
[Black "Krstulovic, Alex"]
[WhiteFideId "2603616"]
[BlackFideId "760056"]
[WhiteElo "2010"]
[BlackElo "2193"]
[Result "1-0"]
[Round "04"]
[TimeControl "180+1"]
[Date "2022.02.09"]
[WhiteClock "0:00:37"]
[BlackClock "0:00:01"]

1. c4 {[%clk 0:02:58]}  Nf6 {[%clk 0:02:59]} 2. g3 {[%clk 0:02:57]}  e6 {[%clk 0:02:59]} 3. Bg2 {[%clk 0:02:57]}  d5 {[%clk 0:03:00]} 4. Nf3 {[%clk 0:02:57]}  dxc4 {[%clk 0:03:00]} 5. Qa4+ {[%clk 0:02:56]}  c6 {[%clk 0:03:00]} 6. Qxc4 {[%clk 0:02:57]}  b5 {[%clk 0:03:01]} 7. Qc2 {[%clk 0:02:55]}  Bb7 {[%clk 0:03:01]} 8. O-O {[%clk 0:02:48]}  Nbd7 {[%clk 0:03:01]} 9. d4 {[%clk 0:02:44]}  Rc8 {[%clk 0:02:59]} 10. Rd1 {[%clk 0:02:42]}  c5 {[%clk 0:02:57]} 11. dxc5 {[%clk 0:02:38]}  Bxc5 {[%clk 0:02:58]} 12. Qb3 {[%clk 0:02:34]}  Qb6 {[%clk 0:02:21]} 13. e3 {[%clk 0:02:21]}  Bd5 {[%clk 0:02:17]} 14. Qd3 {[%clk 0:02:17]}  Bc4 {[%clk 0:02:16]} 15. Qd2 {[%clk 0:02:14]}  O-O {[%clk 0:02:06]} 16. b3 {[%clk 0:02:14]}  Bd5 {[%clk 0:01:54]} 17. Bb2 {[%clk 0:02:08]}  Ne4 {[%clk 0:01:51]} 18. Qe2 {[%clk 0:02:05]}  Ndf6 {[%clk 0:01:42]} 19. Nc3 {[%clk 0:01:50]}  Nxf2 {[%clk 0:01:42]} 20. Nxd5 {[%clk 0:01:48]}  exd5 {[%clk 0:01:34]} 21. Kxf2 {[%clk 0:01:45]}  Ng4+ {[%clk 0:01:29]} 22. Kg1 {[%clk 0:01:41]}  Bxe3+ {[%clk 0:01:28]} 23. Kf1 {[%clk 0:01:33]}  Rfe8 {[%clk 0:01:11]} 24. h3 {[%clk 0:01:28]}  Bc5 {[%clk 0:01:07]} 25. Qxe8+ {[%clk 0:01:13]}  Rxe8 {[%clk 0:01:08]} 26. hxg4 {[%clk 0:01:13]}  b4 {[%clk 0:00:59]} 27. Nd4 {[%clk 0:01:05]}  Qa6+ {[%clk 0:00:58]} 28. Kg1 {[%clk 0:01:01]}  Re2 {[%clk 0:00:30]} 29. Bf1 {[%clk 0:00:56]}  h5 {[%clk 0:00:17]} 30. Rd2 {[%clk 0:00:45]}  Qb6 {[%clk 0:00:02]} 31. Bxe2 {[%clk 0:00:44]}  hxg4 {[%clk 0:00:01]} 32. Bxg4 {[%clk 0:00:38]}  Qh6 {[%clk 0:00:01]} 33. Rad1 {[%clk 0:00:37]} 1-0


[Site "https://www.chess.com"]

[Event "Late Titled Tuesday Blitz February 8 2022"]
[White "Chernomordik, Pavel"]
[Black "Rudzinska, Michalina"]
[WhiteFideId "2804530"]
[BlackFideId "1172883"]
[WhiteElo "2249"]
[BlackElo "1904"]
[Result "1-0"]
[Round "04"]
[TimeControl "180+1"]
[Date "2022.02.09"]
[WhiteClock "0:00:44"]
[BlackClock "0:00:03"]

1. e4 {[%clk 0:03:00]}  b5 {[%clk 0:02:56]} 2. Bxb5 {[%clk 0:02:57]}  c6 {[%clk 0:02:52]} 3. Be2 {[%clk 0:02:55]}  e5 {[%clk 0:02:52]} 4. Nf3 {[%clk 0:02:54]}  Bd6 {[%clk 0:02:48]} 5. d4 {[%clk 0:02:53]}  exd4 {[%clk 0:02:46]} 6. Qxd4 {[%clk 0:02:52]}  Bf8 {[%clk 0:02:39]} 7. O-O {[%clk 0:02:51]}  Nf6 {[%clk 0:02:38]} 8. e5 {[%clk 0:02:49]}  Nd5 {[%clk 0:02:38]} 9. Bc4 {[%clk 0:02:44]}  Nc7 {[%clk 0:02:33]} 10. Ng5 {[%clk 0:02:38]}  Ne6 {[%clk 0:02:31]} 11. Qg4 {[%clk 0:02:36]}  h5 {[%clk 0:02:27]} 12. Qf5 {[%clk 0:02:34]}  Qe7 {[%clk 0:02:17]} 13. Nc3 {[%clk 0:02:33]}  g6 {[%clk 0:02:16]} 14. Qf6 {[%clk 0:02:24]}  Qxf6 {[%clk 0:02:07]} 15. exf6 {[%clk 0:02:23]}  d5 {[%clk 0:02:08]} 16. Bd3 {[%clk 0:02:21]}  Bd6 {[%clk 0:02:05]} 17. Re1 {[%clk 0:02:20]}  O-O {[%clk 0:02:03]} 18. Nxe6 {[%clk 0:02:17]}  Bxe6 {[%clk 0:02:04]} 19. Bxg6 {[%clk 0:02:16]}  fxg6 {[%clk 0:02:03]} 20. Rxe6 {[%clk 0:02:15]}  Bb4 {[%clk 0:01:51]} 21. Bh6 {[%clk 0:02:12]}  Rd8 {[%clk 0:01:41]} 22. a3 {[%clk 0:02:03]}  Bxc3 {[%clk 0:01:39]} 23. bxc3 {[%clk 0:02:02]}  Kf7 {[%clk 0:01:40]} 24. Rae1 {[%clk 0:02:01]}  Nd7 {[%clk 0:01:28]} 25. Re7+ {[%clk 0:01:57]}  Kxf6 {[%clk 0:01:28]} 26. Bg7+ {[%clk 0:01:55]}  Kf5 {[%clk 0:01:21]} 27. Rf7+ {[%clk 0:01:51]}  Kg5 {[%clk 0:01:18]} 28. Ree7 {[%clk 0:01:42]}  Re8 {[%clk 0:01:16]} 29. g3 {[%clk 0:01:36]}  Rxe7 {[%clk 0:01:15]} 30. Rxe7 {[%clk 0:01:35]}  Rd8 {[%clk 0:01:06]} 31. f4+ {[%clk 0:01:32]}  Kf5 {[%clk 0:01:01]} 32. Kg2 {[%clk 0:01:31]}  g5 {[%clk 0:00:57]} 33. Kf3 {[%clk 0:01:26]}  gxf4 {[%clk 0:00:43]} 34. gxf4 {[%clk 0:01:26]}  Kg6 {[%clk 0:00:44]} 35. Bd4 {[%clk 0:01:23]}  c5 {[%clk 0:00:43]} 36. Bf2 {[%clk 0:01:22]}  Nf6 {[%clk 0:00:20]} 37. Bh4 {[%clk 0:01:17]}  Ne4 {[%clk 0:00:15]} 38. Rxa7 {[%clk 0:01:12]}  Rb8 {[%clk 0:00:11]} 39. Ra6+ {[%clk 0:01:04]}  Kf5 {[%clk 0:00:10]} 40. Rh6 {[%clk 0:01:03]}  Nd2+ {[%clk 0:00:06]} 41. Ke3 {[%clk 0:01:02]}  Nc4+ {[%clk 0:00:06]} 42. Kf3 {[%clk 0:01:01]}  Nd2+ {[%clk 0:00:06]} 43. Kf2 {[%clk 0:01:00]}  Ne4+ {[%clk 0:00:07]} 44. Kg2 {[%clk 0:00:58]}  Rg8+ {[%clk 0:00:05]} 45. Kf1 {[%clk 0:00:57]}  Kxf4 {[%clk 0:00:05]} 46. Rxh5 {[%clk 0:00:57]}  Ke3 {[%clk 0:00:04]} 47. Rxd5 {[%clk 0:00:54]}  Nd2+ {[%clk 0:00:04]} 48. Rxd2 {[%clk 0:00:51]}  Kxd2 {[%clk 0:00:05]} 49. Bf2 {[%clk 0:00:49]}  c4 {[%clk 0:00:05]} 50. Bd4 {[%clk 0:00:48]}  Kxc2 {[%clk 0:00:06]} 51. a4 {[%clk 0:00:47]}  Ra8 {[%clk 0:00:06]} 52. h4 {[%clk 0:00:47]}  Rxa4 {[%clk 0:00:06]} 53. Kg2 {[%clk 0:00:47]}  Ra6 {[%clk 0:00:06]} 54. Kg3 {[%clk 0:00:47]}  Kd3 {[%clk 0:00:06]} 55. h5 {[%clk 0:00:47]}  Ke4 {[%clk 0:00:06]} 56. Kg4 {[%clk 0:00:47]}  Ra8 {[%clk 0:00:06]} 57. h6 {[%clk 0:00:46]}  Rg8+ {[%clk 0:00:06]} 58. Kh5 {[%clk 0:00:46]}  Kf5 {[%clk 0:00:06]} 59. h7 {[%clk 0:00:45]}  Rg2 {[%clk 0:00:06]} 60. Kh6 {[%clk 0:00:45]}  Rh2+ {[%clk 0:00:06]} 61. Kg7 {[%clk 0:00:45]}  Rg2+ {[%clk 0:00:06]} 62. Kf7 {[%clk 0:00:45]}  Rh2 {[%clk 0:00:03]} 63. h8=Q {[%clk 0:00:44]} 1-0


[Site "https://www.chess.com"]

[Event "Late Titled Tuesday Blitz February 8 2022"]
[White "Costachi, Mihnea"]
[Black "Paravyan, David"]
[WhiteFideId "1217518"]
[BlackFideId "4194985"]
[WhiteElo "2464"]
[BlackElo "2569"]
[Result "1/2-1/2"]
[Round "04"]
[TimeControl "180+1"]
[Date "2022.02.08"]
[WhiteClock "0:01:08"]
[BlackClock "0:01:42"]

1. d4 {[%clk 0:03:00]}  Nf6 {[%clk 0:02:58]} 2. Bg5 {[%clk 0:03:00]}  d5 {[%clk 0:02:56]} 3. e3 {[%clk 0:03:00]}  c5 {[%clk 0:02:56]} 4. c3 {[%clk 0:03:00]}  Qb6 {[%clk 0:02:55]} 5. Qb3 {[%clk 0:02:57]}  Nc6 {[%clk 0:02:50]} 6. Nd2 {[%clk 0:02:51]}  e6 {[%clk 0:02:48]} 7. Bxf6 {[%clk 0:02:47]}  gxf6 {[%clk 0:02:48]} 8. Bb5 {[%clk 0:02:47]}  Bd7 {[%clk 0:02:47]} 9. Bxc6 {[%clk 0:02:40]}  Bxc6 {[%clk 0:02:48]} 10. Qxb6 {[%clk 0:02:26]}  axb6 {[%clk 0:02:49]} 11. a3 {[%clk 0:02:25]}  Rg8 {[%clk 0:02:48]} 12. g3 {[%clk 0:02:25]}  Bd6 {[%clk 0:02:45]} 13. Ne2 {[%clk 0:02:25]}  Bb5 {[%clk 0:02:45]} 14. Rc1 {[%clk 0:02:18]}  Ke7 {[%clk 0:02:32]} 15. c4 {[%clk 0:02:08]}  dxc4 {[%clk 0:02:33]} 16. Nxc4 {[%clk 0:02:09]}  Bxc4 {[%clk 0:02:33]} 17. Rxc4 {[%clk 0:02:09]}  b5 {[%clk 0:02:33]} 18. Rc2 {[%clk 0:02:03]}  cxd4 {[%clk 0:02:19]} 19. Nxd4 {[%clk 0:01:37]}  b4 {[%clk 0:02:19]} 20. Nb5 {[%clk 0:01:38]}  Rgc8 {[%clk 0:02:01]} 21. Rxc8 {[%clk 0:01:29]}  Rxc8 {[%clk 0:02:02]} 22. Kd2 {[%clk 0:01:29]}  bxa3 {[%clk 0:01:54]} 23. Nxd6 {[%clk 0:01:23]}  Kxd6 {[%clk 0:01:50]} 24. bxa3 {[%clk 0:01:23]}  Ra8 {[%clk 0:01:50]} 25. Rb1 {[%clk 0:01:24]}  Kc7 {[%clk 0:01:50]} 26. Rb3 {[%clk 0:01:23]}  f5 {[%clk 0:01:48]} 27. Kd3 {[%clk 0:01:21]}  Ra4 {[%clk 0:01:48]} 28. h4 {[%clk 0:01:21]}  b6 {[%clk 0:01:47]} 29. Ke2 {[%clk 0:01:20]}  Kc6 {[%clk 0:01:46]} 30. Kd3 {[%clk 0:01:20]}  b5 {[%clk 0:01:46]} 31. Rc3+ {[%clk 0:01:20]}  Kd6 {[%clk 0:01:47]} 32. Kc2 {[%clk 0:01:18]}  b4 {[%clk 0:01:42]} 33. axb4 {[%clk 0:01:17]}  Rxb4 {[%clk 0:01:43]} 34. Kd2 {[%clk 0:01:10]}  Ke7 {[%clk 0:01:42]} 35. Ke2 {[%clk 0:01:09]}  Kf6 {[%clk 0:01:42]} 36. Kf3 {[%clk 0:01:09]}  Kg7 {[%clk 0:01:42]} 37. Rc5 {[%clk 0:01:08]}  Ra4 {[%clk 0:01:42]} 38. Rb5 {[%clk 0:01:09]}  Rc4 {[%clk 0:01:43]} 39. Re5 {[%clk 0:01:09]}  Ra4 {[%clk 0:01:41]} 40. Rb5 {[%clk 0:01:08]}  Rc4 {[%clk 0:01:41]} 41. Ra5 {[%clk 0:01:08]}  Rb4 {[%clk 0:01:41]} 42. Rc5 {[%clk 0:01:08]}  Ra4 {[%clk 0:01:42]} 43. Rb5 {[%clk 0:01:08]} 1/2-1/2


[Site "https://www.chess.com"]

[Event "Late Titled Tuesday Blitz February 8 2022"]
[White "Curtis, John"]
[Black "Zhurbinsky, David"]
[WhiteFideId "3200256"]
[BlackFideId "2072904"]
[WhiteElo "2203"]
[BlackElo "2572"]
[Result "1-0"]
[Round "04"]
[TimeControl "180+1"]
[Date "2022.02.09"]
[WhiteClock "0:00:18"]
[BlackClock "0:00:02"]

1. e4 {[%clk 0:03:00]}  e5 {[%clk 0:02:59]} 2. Nf3 {[%clk 0:03:00]}  Nc6 {[%clk 0:03:00]} 3. Bb5 {[%clk 0:02:59]}  a6 {[%clk 0:02:59]} 4. Ba4 {[%clk 0:02:59]}  Nf6 {[%clk 0:02:58]} 5. d3 {[%clk 0:02:57]}  b5 {[%clk 0:02:57]} 6. Bb3 {[%clk 0:02:56]}  Be7 {[%clk 0:02:58]} 7. O-O {[%clk 0:02:56]}  O-O {[%clk 0:02:58]} 8. Nc3 {[%clk 0:02:53]}  d6 {[%clk 0:02:54]} 9. Nd5 {[%clk 0:02:51]}  Na5 {[%clk 0:02:46]} 10. Nxe7+ {[%clk 0:02:35]}  Qxe7 {[%clk 0:02:46]} 11. Nd2 {[%clk 0:02:23]}  Nxb3 {[%clk 0:02:27]} 12. Nxb3 {[%clk 0:02:20]}  d5 {[%clk 0:02:20]} 13. Be3 {[%clk 0:02:12]}  d4 {[%clk 0:02:12]} 14. Bg5 {[%clk 0:02:08]}  h6 {[%clk 0:02:11]} 15. Bd2 {[%clk 0:01:55]}  c5 {[%clk 0:02:06]} 16. f4 {[%clk 0:01:52]}  c4 {[%clk 0:01:53]} 17. Na5 {[%clk 0:01:36]}  exf4 {[%clk 0:01:12]} 18. Rxf4 {[%clk 0:01:29]}  Qc7 {[%clk 0:01:01]} 19. Rxf6 {[%clk 0:01:04]}  gxf6 {[%clk 0:00:59]} 20. Qh5 {[%clk 0:01:00]}  c3 {[%clk 0:00:50]} 21. bxc3 {[%clk 0:00:52]}  Qxa5 {[%clk 0:00:39]} 22. Rf1 {[%clk 0:00:37]}  Qb6 {[%clk 0:00:39]} 23. Bxh6 {[%clk 0:00:31]}  dxc3+ {[%clk 0:00:37]} 24. Kh1 {[%clk 0:00:24]}  Re8 {[%clk 0:00:18]} 25. h3 {[%clk 0:00:24]}  Re5 {[%clk 0:00:17]} 26. Qh4 {[%clk 0:00:22]}  Bd7 {[%clk 0:00:06]} 27. Rxf6 {[%clk 0:00:21]}  Qd8 {[%clk 0:00:03]} 28. Bg5 {[%clk 0:00:20]}  Rxg5 {[%clk 0:00:02]} 29. Qxg5+ {[%clk 0:00:20]}  Kf8 {[%clk 0:00:03]} 30. Qg6 {[%clk 0:00:19]}  Be6 {[%clk 0:00:01]} 31. Qh6+ {[%clk 0:00:18]}  Ke7 {[%clk 0:00:02]} 32. Qg5 {[%clk 0:00:18]}  Qg8 {[%clk 0:00:02]} 33. Rg6+ {[%clk 0:00:18]}  Kf8 {[%clk 0:00:02]} 34. Rxg8# {[%clk 0:00:18]} 1-0


[Site "https://www.chess.com"]

[Event "Late Titled Tuesday Blitz February 8 2022"]
[White "Demchenko, Anton"]
[Black "Dourerassou, Jonathan"]
[WhiteFideId "4160258"]
[BlackFideId "628050"]
[WhiteElo "2539"]
[BlackElo "2513"]
[Result "1-0"]
[Round "04"]
[TimeControl "180+1"]
[Date "2022.02.08"]
[WhiteClock "0:00:43"]
[BlackClock "0:00:11"]

1. e4 {[%clk 0:03:00]}  d6 {[%clk 0:02:59]} 2. d4 {[%clk 0:03:00]}  g6 {[%clk 0:02:59]} 3. Nf3 {[%clk 0:02:57]}  Bg7 {[%clk 0:02:59]} 4. Bc4 {[%clk 0:02:58]}  a6 {[%clk 0:02:56]} 5. Bb3 {[%clk 0:02:56]}  Nf6 {[%clk 0:02:51]} 6. Qe2 {[%clk 0:02:55]}  O-O {[%clk 0:02:50]} 7. e5 {[%clk 0:02:54]}  dxe5 {[%clk 0:02:48]} 8. dxe5 {[%clk 0:02:55]}  Nd5 {[%clk 0:02:48]} 9. h3 {[%clk 0:02:55]}  Nc6 {[%clk 0:02:41]} 10. O-O {[%clk 0:02:54]}  e6 {[%clk 0:02:34]} 11. Rd1 {[%clk 0:02:51]}  Qe7 {[%clk 0:02:30]} 12. Bg5 {[%clk 0:02:51]}  Qc5 {[%clk 0:02:28]} 13. Nbd2 {[%clk 0:02:51]}  Nd4 {[%clk 0:02:21]} 14. Nxd4 {[%clk 0:02:49]}  Qxd4 {[%clk 0:02:22]} 15. Nc4 {[%clk 0:02:29]}  Qc5 {[%clk 0:02:14]} 16. c3 {[%clk 0:02:15]}  b5 {[%clk 0:02:13]} 17. Nd2 {[%clk 0:02:13]}  Bb7 {[%clk 0:01:50]} 18. Ne4 {[%clk 0:02:12]}  Qc6 {[%clk 0:01:49]} 19. Bxd5 {[%clk 0:02:12]}  exd5 {[%clk 0:01:49]} 20. Nf6+ {[%clk 0:02:12]}  Kh8 {[%clk 0:01:48]} 21. Rd4 {[%clk 0:02:08]}  Rfe8 {[%clk 0:01:32]} 22. Re1 {[%clk 0:01:52]}  Re6 {[%clk 0:01:08]} 23. Rh4 {[%clk 0:01:51]}  Bxf6 {[%clk 0:01:07]} 24. Bxf6+ {[%clk 0:01:51]}  Rxf6 {[%clk 0:01:07]} 25. exf6 {[%clk 0:01:52]}  Qxf6 {[%clk 0:01:05]} 26. Qe7 {[%clk 0:01:44]}  Qxe7 {[%clk 0:00:46]} 27. Rxe7 {[%clk 0:01:44]}  Kg7 {[%clk 0:00:45]} 28. Rf4 {[%clk 0:01:40]}  Rf8 {[%clk 0:00:44]} 29. Rxc7 {[%clk 0:01:40]}  Bc8 {[%clk 0:00:45]} 30. a4 {[%clk 0:01:35]}  Be6 {[%clk 0:00:44]} 31. Ra7 {[%clk 0:01:31]}  bxa4 {[%clk 0:00:43]} 32. Rxa4 {[%clk 0:01:30]}  Rb8 {[%clk 0:00:42]} 33. Rb4 {[%clk 0:01:22]}  Rc8 {[%clk 0:00:37]} 34. Rxa6 {[%clk 0:01:21]}  Kf6 {[%clk 0:00:37]} 35. f3 {[%clk 0:01:19]}  Ke5 {[%clk 0:00:37]} 36. Kf2 {[%clk 0:01:19]}  g5 {[%clk 0:00:37]} 37. h4 {[%clk 0:01:13]}  h6 {[%clk 0:00:37]} 38. g3 {[%clk 0:01:11]}  Rg8 {[%clk 0:00:34]} 39. Ra1 {[%clk 0:01:06]}  Kd6 {[%clk 0:00:32]} 40. hxg5 {[%clk 0:01:00]}  hxg5 {[%clk 0:00:32]} 41. g4 {[%clk 0:01:00]}  Rh8 {[%clk 0:00:32]} 42. Kg3 {[%clk 0:01:00]}  Ke5 {[%clk 0:00:31]} 43. Rb6 {[%clk 0:00:59]}  Kf6 {[%clk 0:00:28]} 44. Re1 {[%clk 0:00:59]}  Ra8 {[%clk 0:00:26]} 45. f4 {[%clk 0:00:52]}  gxf4+ {[%clk 0:00:25]} 46. Kxf4 {[%clk 0:00:53]}  Ra4+ {[%clk 0:00:25]} 47. Rb4 {[%clk 0:00:52]}  Ra8 {[%clk 0:00:23]} 48. g5+ {[%clk 0:00:52]}  Ke7 {[%clk 0:00:24]} 49. Rb7+ {[%clk 0:00:52]}  Kd6 {[%clk 0:00:23]} 50. g6 {[%clk 0:00:50]}  Rf8 {[%clk 0:00:12]} 51. gxf7 {[%clk 0:00:43]}  Bxf7 {[%clk 0:00:11]} 52. Rb6+ {[%clk 0:00:43]}  Kc5 {[%clk 0:00:11]} 53. Rf6 {[%clk 0:00:43]} 1-0


[Site "https://www.chess.com"]

[Event "Late Titled Tuesday Blitz February 8 2022"]
[White "Devagharan, Devina"]
[Black "Vifleemskaia, Svetlana"]
[WhiteFideId "2061600"]
[BlackFideId "4129490"]
[WhiteElo "2217"]
[BlackElo "1901"]
[Result "1/2-1/2"]
[Round "04"]
[TimeControl "180+1"]
[Date "2022.02.09"]
[WhiteClock "0:00:16"]
[BlackClock "0:00:53"]

1. d4 {[%clk 0:03:00]}  Nf6 {[%clk 0:02:58]} 2. c4 {[%clk 0:03:01]}  e6 {[%clk 0:02:58]} 3. Nc3 {[%clk 0:02:58]}  Bb4 {[%clk 0:02:58]} 4. e3 {[%clk 0:02:58]}  O-O {[%clk 0:02:58]} 5. Ne2 {[%clk 0:02:51]}  Re8 {[%clk 0:02:53]} 6. a3 {[%clk 0:02:46]}  Bf8 {[%clk 0:02:52]} 7. Ng3 {[%clk 0:02:44]}  d5 {[%clk 0:02:47]} 8. Bd3 {[%clk 0:02:23]}  dxc4 {[%clk 0:02:46]} 9. Bxc4 {[%clk 0:02:24]}  c5 {[%clk 0:02:46]} 10. O-O {[%clk 0:02:21]}  Nc6 {[%clk 0:02:44]} 11. dxc5 {[%clk 0:01:54]}  Qxd1 {[%clk 0:02:42]} 12. Rxd1 {[%clk 0:01:54]}  Bxc5 {[%clk 0:02:42]} 13. b4 {[%clk 0:01:54]}  Be7 {[%clk 0:02:40]} 14. Bb2 {[%clk 0:01:55]}  a6 {[%clk 0:02:39]} 15. Rac1 {[%clk 0:01:50]}  b5 {[%clk 0:02:36]} 16. Bb3 {[%clk 0:01:48]}  Bb7 {[%clk 0:02:33]} 17. Nge2 {[%clk 0:01:38]}  Red8 {[%clk 0:02:31]} 18. Rxd8+ {[%clk 0:01:20]}  Rxd8 {[%clk 0:02:30]} 19. Rd1 {[%clk 0:01:20]}  Rxd1+ {[%clk 0:02:29]} 20. Nxd1 {[%clk 0:01:21]}  Kf8 {[%clk 0:02:21]} 21. f3 {[%clk 0:01:15]}  a5 {[%clk 0:02:20]} 22. bxa5 {[%clk 0:01:10]}  Nxa5 {[%clk 0:02:19]} 23. Ba2 {[%clk 0:01:11]}  Bd5 {[%clk 0:02:09]} 24. Bxd5 {[%clk 0:01:08]}  Nxd5 {[%clk 0:02:10]} 25. Kf2 {[%clk 0:01:07]}  Nc4 {[%clk 0:02:08]} 26. Bc1 {[%clk 0:01:02]}  Bxa3 {[%clk 0:02:05]} 27. Bxa3+ {[%clk 0:00:46]}  Nxa3 {[%clk 0:02:06]} 28. Nd4 {[%clk 0:00:46]}  b4 {[%clk 0:02:02]} 29. Nb2 {[%clk 0:00:46]}  Ke7 {[%clk 0:01:56]} 30. Ke2 {[%clk 0:00:46]}  Kd6 {[%clk 0:01:53]} 31. Kd3 {[%clk 0:00:45]}  Nb6 {[%clk 0:01:41]} 32. e4 {[%clk 0:00:42]}  g6 {[%clk 0:01:40]} 33. f4 {[%clk 0:00:41]}  f6 {[%clk 0:01:36]} 34. Nb3 {[%clk 0:00:40]}  e5 {[%clk 0:01:32]} 35. g3 {[%clk 0:00:39]}  f5 {[%clk 0:01:30]} 36. fxe5+ {[%clk 0:00:37]}  Kxe5 {[%clk 0:01:29]} 37. exf5 {[%clk 0:00:38]}  gxf5 {[%clk 0:01:28]} 38. Ke3 {[%clk 0:00:34]}  Nd5+ {[%clk 0:01:28]} 39. Kf3 {[%clk 0:00:33]}  h5 {[%clk 0:01:26]} 40. Nd3+ {[%clk 0:00:29]}  Kf6 {[%clk 0:01:23]} 41. h3 {[%clk 0:00:28]}  Nc4 {[%clk 0:01:18]} 42. g4 {[%clk 0:00:25]}  fxg4+ {[%clk 0:01:17]} 43. hxg4 {[%clk 0:00:26]}  h4 {[%clk 0:01:17]} 44. Kg2 {[%clk 0:00:24]}  Kg5 {[%clk 0:01:16]} 45. Kh3 {[%clk 0:00:25]}  Nce3 {[%clk 0:01:14]} 46. Nxb4 {[%clk 0:00:21]}  Nxb4 {[%clk 0:01:12]} 47. Nd4 {[%clk 0:00:22]}  Nxg4 {[%clk 0:01:01]} 48. Nf3+ {[%clk 0:00:22]}  Kf4 {[%clk 0:01:01]} 49. Nxh4 {[%clk 0:00:23]}  Nd3 {[%clk 0:00:56]} 50. Ng2+ {[%clk 0:00:21]}  Kf3 {[%clk 0:00:56]} 51. Nh4+ {[%clk 0:00:21]}  Kf4 {[%clk 0:00:56]} 52. Ng2+ {[%clk 0:00:21]}  Kg5 {[%clk 0:00:57]} 53. Kg3 {[%clk 0:00:20]}  Nde5 {[%clk 0:00:56]} 54. Ne1 {[%clk 0:00:17]}  Kf5 {[%clk 0:00:56]} 55. Nf3 {[%clk 0:00:17]}  Ng6 {[%clk 0:00:53]} 56. Nh4+ {[%clk 0:00:16]}  Nxh4 {[%clk 0:00:53]} 1/2-1/2


[Site "https://www.chess.com"]

[Event "Late Titled Tuesday Blitz February 8 2022"]
[White "Djokic, Mihailo"]
[Black "Li, Ben"]
[WhiteFideId "976440"]
[BlackFideId "2089980"]
[WhiteElo "2560"]
[BlackElo "2762"]
[Result "0-1"]
[Round "04"]
[TimeControl "180+1"]
[Date "2022.02.09"]
[WhiteClock "0:00:01"]
[BlackClock "0:00:24"]

1. e4 {[%clk 0:03:00]}  e5 {[%clk 0:02:59]} 2. Nf3 {[%clk 0:03:00]}  Nf6 {[%clk 0:02:59]} 3. Nc3 {[%clk 0:03:01]}  Nc6 {[%clk 0:02:58]} 4. Bb5 {[%clk 0:03:01]}  Bb4 {[%clk 0:02:54]} 5. O-O {[%clk 0:03:00]}  O-O {[%clk 0:02:55]} 6. d3 {[%clk 0:03:00]}  d6 {[%clk 0:02:55]} 7. Bg5 {[%clk 0:03:00]}  Bxc3 {[%clk 0:02:55]} 8. bxc3 {[%clk 0:02:59]}  Bd7 {[%clk 0:02:55]} 9. Re1 {[%clk 0:02:42]}  a6 {[%clk 0:02:55]} 10. Ba4 {[%clk 0:02:41]}  h6 {[%clk 0:02:55]} 11. Bh4 {[%clk 0:02:40]}  Ne7 {[%clk 0:02:54]} 12. Bxd7 {[%clk 0:02:37]}  Nxd7 {[%clk 0:02:55]} 13. d4 {[%clk 0:02:37]}  Qe8 {[%clk 0:02:53]} 14. Rb1 {[%clk 0:02:35]}  b6 {[%clk 0:02:52]} 15. dxe5 {[%clk 0:02:32]}  dxe5 {[%clk 0:02:48]} 16. Bxe7 {[%clk 0:02:29]}  Qxe7 {[%clk 0:02:49]} 17. Qd5 {[%clk 0:02:28]}  Rfe8 {[%clk 0:02:44]} 18. Red1 {[%clk 0:02:21]}  Nc5 {[%clk 0:02:42]} 19. Qc6 {[%clk 0:02:20]}  Rad8 {[%clk 0:02:40]} 20. h3 {[%clk 0:02:17]}  g6 {[%clk 0:02:33]} 21. Kh2 {[%clk 0:01:59]}  Kg7 {[%clk 0:02:32]} 22. h4 {[%clk 0:01:55]}  a5 {[%clk 0:02:26]} 23. g3 {[%clk 0:01:46]}  Qf6 {[%clk 0:02:09]} 24. Qxf6+ {[%clk 0:01:36]}  Kxf6 {[%clk 0:02:10]} 25. Re1 {[%clk 0:01:18]}  Rd7 {[%clk 0:02:06]} 26. Re2 {[%clk 0:01:17]}  Red8 {[%clk 0:02:06]} 27. Kg2 {[%clk 0:01:16]}  Rd1 {[%clk 0:02:04]} 28. Re1 {[%clk 0:00:58]}  Rxb1 {[%clk 0:02:02]} 29. Rxb1 {[%clk 0:00:58]}  Nxe4 {[%clk 0:02:00]} 30. Re1 {[%clk 0:00:58]}  Nxc3 {[%clk 0:02:00]} 31. Nxe5 {[%clk 0:00:54]}  Nxa2 {[%clk 0:02:00]} 32. Ng4+ {[%clk 0:00:51]}  Kg7 {[%clk 0:01:58]} 33. Re7 {[%clk 0:00:51]}  Rd5 {[%clk 0:01:42]} 34. Rxc7 {[%clk 0:00:46]}  Nb4 {[%clk 0:01:34]} 35. c4 {[%clk 0:00:39]}  Rc5 {[%clk 0:01:32]} 36. Rb7 {[%clk 0:00:38]}  a4 {[%clk 0:01:05]} 37. Rxb6 {[%clk 0:00:35]}  Rxc4 {[%clk 0:01:03]} 38. Ne3 {[%clk 0:00:31]}  Rd4 {[%clk 0:00:59]} 39. Rb7 {[%clk 0:00:28]}  a3 {[%clk 0:00:58]} 40. Ra7 {[%clk 0:00:28]}  a2 {[%clk 0:00:58]} 41. h5 {[%clk 0:00:23]}  Rd2 {[%clk 0:00:55]} 42. hxg6 {[%clk 0:00:22]}  Kxg6 {[%clk 0:00:55]} 43. Ra4 {[%clk 0:00:21]}  Nd3 {[%clk 0:00:51]} 44. Ng4 {[%clk 0:00:17]}  h5 {[%clk 0:00:46]} 45. Ra6+ {[%clk 0:00:14]}  Kg7 {[%clk 0:00:45]} 46. Ne3 {[%clk 0:00:13]}  Rxf2+ {[%clk 0:00:44]} 47. Kh3 {[%clk 0:00:13]}  Nc1 {[%clk 0:00:37]} 48. Nd1 {[%clk 0:00:05]}  Rd2 {[%clk 0:00:32]} 49. Nc3 {[%clk 0:00:03]}  Rc2 {[%clk 0:00:29]} 50. Ne4 {[%clk 0:00:01]}  Nb3 {[%clk 0:00:28]} 51. Nd6 {[%clk 0:00:01]}  a1=Q {[%clk 0:00:26]} 52. Ne8+ {[%clk 0:00:01]}  Kf8 {[%clk 0:00:26]} 53. Rh6 {[%clk 0:00:01]}  Kxe8 {[%clk 0:00:24]} 0-1


[Site "https://www.chess.com"]